bitfinex-derivatives/quotes_SOLF0:USTF0_20260311
["timestamp","ask_amount","ask_price","bid_price","bid_amount"]
[1773260983479,14.46,87.071,87.04,10.338]
[1773260987078,14.46,87.071,87.04,14.29197185]
[1773260988187,14.46,87.071,87.041,3.95397185]
[1773260988883,14.46,87.071,87.009,21.41202307]
[1773260988884,3.65968176,87.083,87.051,3.95397185]
[1773260989084,14.46,87.082,87.051,3.95397185]
[1773260992887,18.49457457,87.082,87.051,3.95397185]
[1773260993394,4.03457457,87.081,87.051,3.95397185]
[1773260994090,8.95244116,87.08,87.051,3.95397185]
[1773260994290,4.03457457,87.08,87.051,3.95397185]
[1773260995291,18.49457457,87.08,87.051,3.95397185]
[1773260995892,4.03457457,87.079,87.051,3.95397185]
[1773261002199,4.03457457,87.079,87.05,10.337]
[1773261002397,4.03457457,87.079,87.045,3.68539329]
[1773261003394,4.03457457,87.079,87.047,3.68539329]
[1773261003594,14.46,87.098,87.061,3.68539329]
[1773261003799,18.49457457,87.108,87.071,3.68539329]
[1773261003994,19.37217884,87.107,87.071,3.68539329]
[1773261004194,4.91217884,87.106,87.071,3.68539329]
[1773261004395,4.91217884,87.105,87.071,3.68539329]
[1773261004604,4.91217884,87.104,87.071,3.68539329]
[1773261004805,4.91217884,87.103,87.071,3.68539329]
[1773261005004,4.91217884,87.102,87.071,3.68539329]
[1773261005202,14.46,87.107,87.071,3.68539329]
[1773261005203,4.91217884,87.106,87.071,3.68539329]
[1773261005401,4.91217884,87.106,87.026,21.42784856]
[1773261005402,4.03457457,87.104,87.044,3.68539329]
[1773261005708,4.03457457,87.099,87.044,3.68539329]
[1773261005906,2.46378102,87.1,87.044,3.68539329]
[1773261005907,4.03457457,87.097,87.044,3.68539329]
[1773261006105,4.03457457,87.095,87.044,3.68539329]
[1773261006307,4.03457457,87.093,87.044,3.68539329]
[1773261006606,4.03457457,87.091,87.044,3.68539329]
[1773261006906,4.03457457,87.089,87.044,3.68539329]
[1773261007406,14.36757457,87.083,87.045,14.02239329]
[1773261008403,14.36757457,87.083,87.046,3.68539329]
[1773261009905,4.03457457,87.082,87.046,3.68539329]
[1773261012602,4.03457457,87.082,87.047,14.02239329]
[1773261013804,4.03457457,87.082,87.048,3.68539329]
[1773261023616,4.01043272,87.078,87.04,10.338]
[1773261023818,4.01043272,87.076,87.04,10.338]
[1773261024012,4.01043272,87.074,87.04,10.338]
[1773261024214,4.01043272,87.072,87.04,10.338]
[1773261025220,4.94384715,87.071,87.04,10.338]
[1773261025420,4.01043272,87.072,87.04,10.338]
[1773261025619,4.94384629,87.071,87.04,10.338]
[1773261025918,4.01043272,87.072,87.04,10.338]
[1773261026119,4.94384629,87.071,87.04,10.338]
[1773261026321,4.94608155,87.07,87.04,10.338]
[1773261026513,4.94608155,87.069,87.04,10.338]
[1773261026818,4.01043272,87.072,87.04,10.338]
[1773261027019,4.94609493,87.071,87.04,10.338]
[1773261027220,4.94609493,87.07,87.04,10.338]
[1773261027420,4.94609493,87.069,87.04,10.338]
[1773261027624,4.01043272,87.072,87.04,10.338]
[1773261027812,4.94662543,87.071,87.04,10.338]
[1773261028011,4.94662543,87.07,87.04,10.338]
[1773261028214,4.94662543,87.069,87.04,10.338]
[1773261028413,4.01043272,87.072,87.04,10.338]
[1773261028622,4.94684881,87.071,87.04,10.338]
[1773261028920,4.01043272,87.072,87.04,10.338]
[1773261028921,4.94684881,87.07,87.04,10.338]
[1773261029118,4.94684881,87.069,87.04,10.338]
[1773261029319,4.01043272,87.072,87.04,10.338]
[1773261029515,4.94709381,87.071,87.04,10.338]
[1773261029712,4.94709381,87.07,87.04,10.338]
[1773261029916,4.94709381,87.069,87.04,10.338]
[1773261030117,4.01043272,87.072,87.04,10.338]
[1773261030313,4.94709423,87.071,87.04,10.338]
[1773261030514,4.94709423,87.07,87.04,10.338]
[1773261030714,4.94709423,87.069,87.04,10.338]
[1773261030915,4.94709423,87.068,87.04,10.338]
[1773261031117,4.01043272,87.072,87.04,10.338]
[1773261031314,4.94759099,87.071,87.04,10.338]
[1773261031515,4.94759099,87.07,87.04,10.338]
[1773261031715,4.94759099,87.069,87.04,10.338]
[1773261031916,4.94759099,87.068,87.04,10.338]
[1773261032120,4.01043272,87.072,87.04,10.338]
[1773261032326,8.95829155,87.071,87.04,10.338]
[1773261032525,4.01043272,87.069,87.04,10.338]
[1773261032725,4.94785883,87.068,87.04,10.338]
[1773261032928,4.01043272,87.069,87.04,10.338]
[1773261033127,4.94786279,87.068,87.04,10.338]
[1773261033327,4.01043272,87.069,87.04,10.338]
[1773261033523,4.94998779,87.068,87.04,10.338]
[1773261033822,8.96231729,87.067,87.04,10.338]
[1773261034018,4.01043272,87.067,87.04,10.338]
[1773261039431,4.01043272,87.067,87.034,3.85844116]
[1773261039927,4.01043272,87.065,87.026,10.34]
[1773261040136,2.46156366,87.07,87.026,10.34]
[1773261040137,4.01043272,87.063,87.026,10.34]
[1773261040431,2.46156366,87.07,87.026,10.34]
[1773261040432,4.04079265,87.061,87.026,10.34]
[1773261040630,4.04079265,87.059,87.026,10.34]
[1773261040831,4.04079265,87.057,87.026,10.34]
[1773261041127,8.98537585,87.056,87.026,10.34]
[1773261041432,4.04079265,87.056,87.026,10.34]
[1773261047937,4.04079265,87.056,87.022,3.85844116]
[1773261048135,4.04079265,87.056,87.013,3.67217957]
[1773261048534,4.04079265,87.055,87.013,3.67217957]
[1773261048736,4.04079265,87.054,87.013,3.67217957]
[1773261048930,4.04079265,87.052,87.013,3.67217957]
[1773261049434,4.04079265,87.047,87.013,3.67217957]
[1773261055243,4.93214622,87.059,87.021,3.89480755]
[1773261055443,3.74988025,87.063,87.021,3.89480755]
[1773261056441,14.08488025,87.063,87.027,14.23480755]
[1773261056642,3.74988025,87.062,87.027,14.23480755]
[1773261063240,3.74988025,87.062,87.02,2.46156366]
[1773261063241,3.74988025,87.062,87.031,10.339]
[1773261063447,3.74988025,87.062,87.032,3.89480755]
[1773261064445,3.74988025,87.062,87.036,10.338]
[1773261064642,14.46,87.064,86.997,21.42784856]
[1773261064643,3.74988025,87.072,87.037,3.89480755]
[1773261064850,18.20988025,87.072,87.041,3.89480755]
[1773261065052,18.20988025,87.072,87.046,10.337]
[1773261065751,3.74988025,87.097,87.051,3.89480755]
[1773261065952,3.74988025,87.093,87.051,3.89480755]
[1773261066150,3.74988025,87.091,87.051,3.89480755]
[1773261066349,3.74988025,87.089,87.051,3.89480755]
[1773261066548,8.68832762,87.088,87.051,3.89480755]
[1773261066748,3.74988025,87.088,87.051,3.89480755]
[1773261067452,3.74988025,87.088,87.054,3.89480755]
[1773261070257,3.74988025,87.088,87.057,3.89480755]
[1773261070855,14.46,87.093,87.023,21.42784856]
[1773261070856,3.74988025,87.087,87.024,3.89480755]
[1773261071058,3.74988025,87.085,87.031,3.89480755]
[1773261071254,3.74988025,87.083,87.041,3.89480755]
[1773261071455,19.40008874,87.082,87.041,3.89480755]
[1773261071655,4.94008874,87.081,87.041,3.89480755]
[1773261071855,14.46,87.082,87.041,3.89480755]
[1773261072052,4.93998904,87.081,87.041,3.89480755]
[1773261072259,14.46,87.082,87.041,3.89480755]
[1773261072460,14.46,87.082,87.047,10.337]
[1773261072861,14.46,87.082,87.047,14.23180755]
[1773261074255,14.46,87.082,87.048,3.89480755]
[1773261074462,14.46,87.082,87.052,3.89480755]
[1773261077364,10.332,87.09,87.052,3.89480755]
[1773261077365,3.74988025,87.087,87.052,3.89480755]
[1773261078261,3.74988025,87.086,87.052,3.89480755]
[1773261081767,3.74988025,87.086,87.052,14.23080755]
[1773261085071,3.94904348,87.084,87.052,3.89480755]
[1773261086471,3.94904348,87.083,87.052,3.89480755]
[1773261092567,3.94904348,87.083,87.055,10.336]
[1773261092773,3.94904348,87.083,87.05,2.46154318]
[1773261092774,14.46,87.088,87.056,3.66643023]
[1773261092973,4.93326326,87.091,87.056,3.66643023]
[1773261093174,4.93326326,87.09,87.063,3.66643023]
[1773261093375,4.93326326,87.096,87.063,3.66643023]
[1773261093577,4.93326326,87.095,87.063,3.66643023]
[1773261093778,4.93326326,87.094,87.065,3.66643023]
[1773261093978,3.94904348,87.097,87.065,3.66643023]
[1773261093979,4.93326326,87.093,87.065,3.66643023]
[1773261094177,4.93326326,87.092,87.065,3.66643023]
[1773261094377,4.93326326,87.091,87.065,3.66643023]
[1773261094578,4.93326326,87.09,87.065,3.66643023]
[1773261094775,4.93326326,87.096,87.065,3.66643023]
[1773261094976,4.93326326,87.095,87.065,3.66643023]
[1773261095173,0.00026326,87.098,87.065,3.66643023]
[1773261095479,14.46,87.112,87.071,3.66643023]
[1773261095681,14.46,87.112,87.076,3.66643023]
[1773261096378,3.94904348,87.117,87.076,3.66643023]
[1773261096979,3.94904348,87.117,87.08,2.46154318]
[1773261097179,3.94904348,87.156,87.11,2.46154318]
[1773261097372,3.94904348,87.156,87.111,3.66643023]
[1773261098378,10.325,87.153,87.112,3.66643023]
[1773261098580,3.94904348,87.156,87.112,3.66643023]
[1773261098581,14.46,87.152,87.112,3.66643023]
[1773261100380,10.325,87.151,87.112,3.66643023]
[1773261100983,4.02951397,87.168,87.131,3.90950603]
[1773261101173,14.46,87.179,87.131,3.90950603]
[1773261101373,18.48951397,87.179,87.131,3.90950603]
[1773261101577,4.02951397,87.178,87.131,3.90950603]
[1773261102385,4.02951397,87.178,87.132,3.90950603]
[1773261104486,14.46,87.179,87.132,3.90950603]
[1773261104487,14.35251397,87.167,87.132,3.90950603]
[1773261104680,4.02951397,87.167,87.132,3.90950603]
[1773261106486,4.02951397,87.167,87.134,3.90950603]
[1773261112088,4.02951397,87.167,87.125,3.83987657]
[1773261112481,4.02951397,87.167,87.134,3.83987657]
[1773261113287,3.81666565,87.181,87.141,3.83987657]
[1773261113489,3.81666565,87.181,87.15,6.30141975]
[1773261113688,3.81666565,87.181,87.154,10.324]
[1773261113889,3.81666565,87.191,87.15,6.30141975]
[1773261114285,3.81666565,87.191,87.151,3.83987657]
[1773261115091,3.81666565,87.191,87.15,2.46154318]
[1773261115092,3.81666565,87.191,87.153,3.83987657]
[1773261116782,10.32,87.189,87.153,3.83987657]
[1773261116984,3.81666565,87.191,87.153,3.83987657]
[1773261118695,3.81666565,87.191,87.102,14.46]
[1773261118696,14.46,87.206,87.154,3.83987657]
[1773261118994,2.46154318,87.2,87.154,3.83987657]
[1773261119288,3.81666565,87.199,87.154,3.83987657]
[1773261120395,3.81666565,87.195,87.154,3.83987657]
[1773261121491,3.81666565,87.185,87.142,3.83987657]
[1773261122185,10.32,87.193,87.142,3.83987657]
[1773261122384,14.13666565,87.193,87.151,3.83987657]
[1773261122592,3.81666565,87.192,87.151,3.83987657]
[1773261123297,10.32,87.191,87.152,3.83987657]
[1773261124596,10.32,87.191,87.153,14.16487657]
[1773261124797,3.81666565,87.19,87.153,3.83987657]
[1773261124996,3.81666565,87.188,87.153,3.83987657]
[1773261131507,2.46154318,87.18,87.131,3.83987657]
[1773261131809,3.81666565,87.169,87.131,3.83987657]
[1773261132202,3.81666565,87.169,87.14,10.326]
[1773261132701,3.81666565,87.169,87.133,10.327]
[1773261132908,3.81666565,87.169,87.134,3.83987657]
[1773261134406,3.81666565,87.169,87.136,3.83987657]
[1773261141218,10.323,87.168,87.136,3.83987657]
[1773261141816,14.35408203,87.168,87.136,3.83987657]
[1773261142114,4.03108203,87.167,87.136,3.83987657]
[1773261142313,5.02391551,87.166,87.136,3.83987657]
[1773261142619,4.03108203,87.167,87.136,3.83987657]
[1773261142918,5.02401725,87.166,87.136,3.83987657]
[1773261143217,4.03108203,87.159,87.093,3.98805716]
[1773261143416,5.02355017,87.158,87.111,3.98805716]
[1773261143614,5.02355017,87.158,87.11,2.4568342]
[1773261143615,5.02355017,87.157,87.121,3.98805716]
[1773261143919,5.02355017,87.156,87.121,3.98805716]
[1773261144120,5.02355017,87.155,87.121,3.98805716]
[1773261144311,5.02709118,87.154,87.128,14.31605716]
[1773261144515,4.03108203,87.167,87.128,14.31605716]
[1773261144817,4.03108203,87.165,87.128,14.31605716]
[1773261145018,5.02698781,87.164,87.129,3.98805716]
[1773261145217,5.02698781,87.163,87.129,3.98805716]
[1773261145420,5.02698781,87.162,87.129,3.98805716]
[1773261145621,5.02698781,87.161,87.129,3.98805716]
[1773261145822,5.02698781,87.16,87.129,3.98805716]
[1773261146022,5.02698781,87.159,87.129,3.98805716]
[1773261146317,5.02698781,87.158,87.131,3.98805716]
[1773261146522,5.02698781,87.157,87.131,3.98805716]
[1773261146726,5.02698781,87.156,87.131,3.98805716]
[1773261146920,5.02698781,87.155,87.131,3.98805716]
[1773261147118,4.03108203,87.165,87.131,3.98805716]
[1773261147119,5.02698781,87.154,87.131,3.98805716]
[1773261147319,5.02698781,87.153,87.131,3.98805716]
[1773261147519,4.03108203,87.165,87.131,3.98805716]
[1773261147818,5.02851368,87.164,87.131,3.98805716]
[1773261148019,5.02851368,87.163,87.131,3.98805716]
[1773261148215,5.02851368,87.162,87.131,3.98805716]
[1773261148420,5.02851368,87.161,87.131,3.98805716]
[1773261148621,5.02851368,87.16,87.131,3.98805716]
[1773261148924,5.02851368,87.159,87.131,3.98805716]
[1773261149121,5.02851368,87.158,87.131,3.98805716]
[1773261149326,5.02851368,87.157,87.131,3.98805716]
[1773261149526,5.02851368,87.156,87.131,3.98805716]
[1773261149727,5.02851368,87.155,87.131,3.98805716]
[1773261150028,4.03108203,87.165,87.131,3.98805716]
[1773261150227,5.02805188,87.164,87.131,3.98805716]
[1773261150427,5.02805188,87.163,87.131,3.98805716]
[1773261150626,5.02805188,87.162,87.131,3.98805716]
[1773261150926,5.02805188,87.161,87.131,3.98805716]
[1773261151226,5.02805188,87.16,87.131,3.98805716]
[1773261151424,4.03108203,87.165,87.131,3.98805716]
[1773261151425,5.02805188,87.159,87.131,3.98805716]
[1773261151625,5.02805188,87.158,87.131,3.98805716]
[1773261151825,5.02805188,87.157,87.131,3.98805716]
[1773261152026,4.03108203,87.165,87.131,3.98805716]
[1773261152224,4.03108203,87.178,87.136,3.98805716]
[1773261152424,4.03108203,87.176,87.125,3.98805716]
[1773261152726,2.4568342,87.18,87.125,3.98805716]
[1773261152727,4.03108203,87.174,87.125,3.98805716]
[1773261153027,4.03108203,87.172,87.125,3.98805716]
[1773261153223,2.4568342,87.18,87.125,3.98805716]
[1773261153224,4.03108203,87.17,87.125,3.98805716]
[1773261153426,4.03108203,87.168,87.131,10.327]
[1773261153627,4.03108203,87.166,87.131,10.327]
[1773261153825,9.05814357,87.165,87.131,10.327]
[1773261154020,5.02706154,87.164,87.131,10.327]
[1773261154326,5.02706154,87.163,87.131,10.327]
[1773261154526,5.02706154,87.162,87.131,10.327]
[1773261154826,5.02706154,87.161,87.131,10.327]
[1773261155026,5.02706154,87.16,87.131,10.327]
[1773261155227,4.03108203,87.165,87.131,10.327]
[1773261155428,5.02554568,87.164,87.131,10.327]
[1773261155722,4.03108203,87.162,87.125,3.98805716]
[1773261155928,14.46,87.176,87.125,3.98805716]
[1773261155929,4.03108203,87.157,87.125,3.98805716]
[1773261156129,4.03108203,87.155,87.125,3.98805716]
[1773261156424,4.03108203,87.155,87.111,3.98805716]
[1773261157327,4.03108203,87.155,87.122,10.328]
[1773261158324,10.325,87.152,87.115,10.329]
[1773261158525,4.03108203,87.151,87.115,10.329]
[1773261161628,3.76215188,87.149,87.089,3.93647792]
[1773261161832,3.76215188,87.147,87.089,3.93647792]
[1773261162032,3.76215188,87.134,87.095,10.331]
[1773261162232,3.76215188,87.133,87.095,14.26747792]
[1773261162625,3.76215188,87.133,87.08,2.4568342]
[1773261162626,3.76215188,87.133,87.096,3.93647792]
[1773261163429,3.76215188,87.133,87.101,10.331]
[1773261165338,3.76215188,87.133,87.101,14.26747792]
[1773261166227,3.76215188,87.133,87.101,3.93647792]
[1773261167538,3.76215188,87.133,87.103,10.33]
[1773261169438,3.76215188,87.133,87.095,10.331]
[1773261169635,3.76215188,87.129,87.095,10.331]
[1773261180145,2.4568342,87.14,87.09,3.93647792]
[1773261180146,3.66053678,87.127,87.09,3.93647792]
[1773261180339,3.66053678,87.127,87.081,3.88365416]
[1773261180742,3.66053678,87.124,87.082,10.333]
[1773261181344,3.66053678,87.124,87.082,14.21665416]
[1773261181546,3.66053678,87.122,87.084,10.333]
[1773261181748,3.66053678,87.122,87.084,14.21665416]
[1773261182048,3.66053678,87.122,87.085,3.88365416]
[1773261188449,3.66053678,87.119,87.076,3.88365416]
[1773261188751,3.66053678,87.109,87.076,3.88365416]
[1773261189649,3.66053678,87.109,87.061,3.88365416]
[1773261189851,3.66053678,87.108,87.061,3.88365416]
[1773261191353,3.66053678,87.102,87.063,14.21865416]
[1773261192154,3.66053678,87.102,87.063,3.88365416]
[1773261192852,3.66053678,87.098,87.053,3.88365416]
[1773261193558,3.66053678,87.089,87.053,3.88365416]
[1773261195159,2.4568342,87.1,87.053,3.88365416]
[1773261195160,3.66053678,87.087,87.053,3.88365416]
[1773261195360,3.66053678,87.087,87.043,10.338]
[1773261195361,3.66053678,87.087,87.043,14.22165416]
[1773261195762,3.66053678,87.085,87.043,14.22165416]
[1773261196757,2.4568342,87.08,87.034,10.339]
[1773261196963,3.66053678,87.069,87.021,3.88365416]
[1773261198463,10.336,87.057,87.021,3.88365416]
[1773261198660,3.66053678,87.06,87.021,3.88365416]
[1773261200468,3.66053678,87.06,87.023,3.74529728]
[1773261201366,3.94228082,87.058,86.968,3.74529728]
[1773261201563,3.94228082,87.049,86.991,3.74529728]
[1773261201758,3.94228082,87.039,86.991,3.74529728]
[1773261203065,3.94228082,87.05,86.994,3.74529728]
[1773261203260,18.40228082,87.05,87.001,3.74529728]
[1773261203663,3.94228082,87.061,87.02,2.46437193]
[1773261203869,20.656,87.127,87.02,2.46437193]
[1773261203870,3.94228082,87.079,87.021,3.74529728]
[1773261204563,3.94228082,87.079,87.031,3.74529728]
[1773261208363,3.94228082,87.079,87.032,3.74529728]
[1773261209367,3.94228082,87.079,87.034,3.74529728]
[1773261210261,3.94228082,87.079,87.036,3.74529728]
[1773261212666,10.334,87.077,87.036,3.74529728]
[1773261212964,3.94228082,87.076,87.036,3.74529728]
[1773261215570,14.27428082,87.087,87.041,3.74529728]
[1773261216374,14.27428082,87.087,87.045,3.74529728]
[1773261217873,14.27428082,87.087,87.048,3.74529728]
[1773261220374,3.7926218,87.086,87.048,3.74529728]
[1773261228383,3.7926218,87.084,87.048,3.74529728]
[1773261233177,2.46437193,87.1,87.03,2.46437193]
[1773261233178,4.84849847,87.094,87.03,2.46437193]
[1773261233376,3.69439499,87.113,87.061,3.74544292]
[1773261233575,3.69439499,87.111,87.061,3.74544292]
[1773261233781,4.84849847,87.11,87.061,3.74544292]
[1773261233986,4.84849847,87.109,87.061,3.74544292]
[1773261234286,10.33,87.107,87.071,3.74544292]
[1773261237178,3.69439499,87.102,87.071,3.74544292]
[1773261247191,10.331,87.097,87.071,3.74544292]
[1773261247396,10.331,87.097,87.063,10.335]
[1773261247598,10.331,87.097,87.064,3.74544292]
[1773261247897,3.69439499,87.102,87.064,3.74544292]
[1773261248098,3.69439499,87.102,87.071,3.74544292]
[1773261249499,10.331,87.101,87.071,3.74544292]
[1773261252697,14.02539499,87.101,87.071,3.74544292]
[1773261255401,3.69439499,87.1,87.071,3.74544292]
[1773261259002,3.69439499,87.096,87.05,2.46437193]
[1773261259209,3.69439499,87.094,87.05,2.46437193]
[1773261259706,3.69439499,87.092,87.051,3.74544292]
[1773261259898,4.90080151,87.093,87.051,3.74544292]
[1773261259899,3.85968006,87.09,87.051,3.74544292]
[1773261260502,2.46437193,87.1,87.051,14.08244292]
[1773261260503,3.85968006,87.087,87.051,14.08244292]
[1773261263711,3.85968006,87.087,87.051,3.74544292]
[1773261264713,3.85968006,87.087,87.054,3.74780371]
[1773261264922,4.90362603,87.099,87.054,3.74780371]
[1773261265219,3.85968006,87.101,87.054,3.74780371]
[1773261265511,3.85968006,87.099,87.054,3.74780371]
[1773261266415,3.85968006,87.099,87.061,10.336]
[1773261266716,3.85968006,87.099,87.061,14.08380371]
[1773261267717,10.331,87.096,87.061,14.08380371]
[1773261268015,14.19068006,87.096,87.061,14.08380371]
[1773261268213,4.90510701,87.095,87.061,14.08380371]
[1773261268515,3.85968006,87.095,87.061,14.08380371]
[1773261270217,4.90599264,87.094,87.061,14.08380371]
[1773261270419,3.85968006,87.095,87.061,14.08380371]
[1773261270718,4.90615927,87.094,87.061,14.08380371]
[1773261270918,3.85968006,87.095,87.061,14.08380371]
[1773261271119,4.90616504,87.094,87.062,3.74780371]
[1773261271314,3.85968006,87.095,87.062,3.74780371]
[1773261271515,4.90675244,87.094,87.062,3.74780371]
[1773261271710,3.85968006,87.095,87.062,3.74780371]
[1773261271910,4.90675244,87.094,87.062,3.74780371]
[1773261272116,4.90701385,87.093,87.062,3.74780371]
[1773261272315,3.85968006,87.095,87.062,3.74780371]
[1773261272519,4.90715818,87.094,87.062,3.74780371]
[1773261272720,4.90715818,87.093,87.062,3.74780371]
[1773261272920,3.85968006,87.095,87.062,3.74780371]
[1773261273120,8.767055,87.094,87.062,3.74780371]
[1773261273322,8.767055,87.094,87.015,20.682]
[1773261273323,14.46,87.102,87.065,3.74780371]
[1773261273518,4.90866359,87.101,87.065,3.74780371]
[1773261273718,4.90866359,87.1,87.065,3.74780371]
[1773261273918,4.90866359,87.099,87.065,3.74780371]
[1773261274117,4.90866359,87.098,87.065,3.74780371]
[1773261274419,4.90931162,87.097,87.067,3.74780371]
[1773261274618,14.19068006,87.103,87.067,3.74780371]
[1773261274810,4.90931357,87.102,87.067,3.74780371]
[1773261275117,4.90931357,87.101,87.067,3.74780371]
[1773261275317,4.90931357,87.1,87.067,3.74780371]
[1773261275509,4.90931357,87.099,87.067,3.74780371]
[1773261275710,4.90931357,87.098,87.067,3.74780371]
[1773261275913,4.90931357,87.097,87.067,3.74780371]
[1773261276110,4.90194254,87.096,87.067,3.74780371]
[1773261276319,3.85968006,87.102,87.067,3.74780371]
[1773261276519,4.90203737,87.101,87.067,3.74780371]
[1773261276721,4.90203737,87.1,87.067,3.74780371]
[1773261276919,4.90203737,87.099,87.067,3.74780371]
[1773261277120,3.85968006,87.102,87.06,2.46128047]
[1773261277121,4.90203737,87.098,87.07,3.74780371]
[1773261277319,3.85968006,87.102,87.07,3.74780371]
[1773261277518,4.90369758,87.101,87.07,3.74780371]
[1773261277816,3.85968006,87.114,87.081,3.74780371]
[1773261278012,3.85968006,87.135,87.091,3.74780371]
[1773261278212,3.85968006,87.133,87.091,3.74780371]
[1773261279422,3.85968006,87.133,87.097,3.74780371]
[1773261283220,4.02336612,87.147,87.101,4.02931827]
[1773261283417,4.02336612,87.147,87.111,4.02931827]
[1773261283624,4.02336612,87.147,87.113,4.02931827]
[1773261283819,14.46,87.152,87.113,4.02931827]
[1773261284122,4.02336612,87.169,87.131,4.02931827]
[1773261284726,4.02336612,87.169,87.12,6.49059874]
[1773261284921,4.02336612,87.169,87.121,4.02931827]
[1773261285424,4.02336612,87.167,87.121,4.02931827]
[1773261285926,4.02336612,87.167,87.111,4.02931827]
[1773261286427,4.02336612,87.158,87.111,4.02931827]
[1773261287725,4.02336612,87.156,87.113,14.35831827]
[1773261290126,4.02336612,87.156,87.114,3.86931638]
[1773261292229,3.99141183,87.154,87.114,3.86931638]
[1773261294526,3.99141183,87.151,87.114,3.86931638]
[1773261294828,14.46,87.159,87.091,3.86931638]
[1773261294829,3.99141183,87.149,87.091,3.86931638]
[1773261295030,3.99141183,87.133,87.091,3.86931638]
[1773261295330,3.99141183,87.133,87.093,3.86931638]
[1773261296324,3.99141183,87.133,87.095,10.331]
[1773261298530,3.99141183,87.133,87.096,3.86931638]
[1773261299324,3.99141183,87.133,87.045,20.675]
[1773261299325,3.99141183,87.129,87.087,10.332]
[1773261299931,3.99141183,87.129,87.087,14.20131638]
[1773261300324,3.99141183,87.126,87.087,14.20131638]
[1773261300725,3.99141183,87.126,87.087,3.86931638]
[1773261302335,10.328,87.125,87.087,3.86931638]
[1773261302631,3.99141183,87.124,87.087,3.86931638]
[1773261305240,3.99141183,87.138,87.087,3.86931638]
[1773261306440,3.99141183,87.138,87.103,10.33]
[1773261306642,3.99141183,87.138,87.104,3.86931638]
[1773261308350,10.327,87.136,87.104,3.86931638]
[1773261310750,3.99141183,87.135,87.104,3.86931638]
[1773261310950,3.99141183,87.131,87.096,10.331]
[1773261314861,3.99141183,87.131,87.085,3.86931638]
[1773261316358,10.328,87.128,87.092,14.20131638]
[1773261316559,10.328,87.128,87.093,3.86931638]
[1773261317062,3.99141183,87.131,87.095,3.86931638]
[1773261317762,3.99141183,87.129,87.095,3.86931638]
[1773261320664,10.328,87.126,87.095,3.86931638]
[1773261320866,3.76337213,87.126,87.095,3.86931638]
[1773261322465,3.76337213,87.126,87.091,10.332]
[1773261322466,3.76337213,87.126,87.084,14.12377631]
[1773261323563,3.76337213,87.124,87.084,14.12377631]
[1773261323764,3.76337213,87.124,87.085,3.79077631]
[1773261325260,3.76337213,87.124,87.088,10.332]
[1773261325558,3.76337213,87.124,87.088,14.12277631]
[1773261325961,3.76337213,87.124,87.07,2.45915029]
[1773261326160,3.76337213,87.124,87.071,3.79077631]
[1773261326468,3.76337213,87.121,87.076,14.12477631]
[1773261326666,3.76337213,87.119,87.077,3.79077631]
[1773261326962,3.76337213,87.118,87.077,3.79077631]
[1773261328467,3.76337213,87.118,87.08,3.79077631]
[1773261331366,3.76337213,87.143,87.091,3.79077631]
[1773261332369,10.327,87.135,87.1,3.79077631]
[1773261333264,3.76337213,87.142,87.102,3.79077631]
[1773261334372,3.76337213,87.142,87.105,10.33]
[1773261337974,3.76337213,87.142,87.105,14.12077631]
[1773261338267,3.76337213,87.142,87.106,3.79077631]
[1773261342073,10.326,87.14,87.106,3.79077631]
[1773261342273,3.97709057,87.139,87.106,3.79077631]
[1773261342774,14.30409057,87.137,87.106,3.79077631]
[1773261342975,3.97709057,87.136,87.106,3.79077631]
[1773261343273,3.97709057,87.136,87.098,10.331]
[1773261343469,3.97709057,87.134,87.095,3.90838974]
[1773261343674,14.46,87.145,87.015,178.0]
[1773261343675,3.97709057,87.125,87.072,3.90838974]
[1773261343974,8.81736607,87.124,87.072,3.90838974]
[1773261344169,8.81736607,87.124,87.07,2.45915029]
[1773261344170,4.8402755,87.123,87.089,10.332]
[1773261344472,4.8402755,87.122,87.089,10.332]
[1773261344669,4.8402755,87.121,87.089,10.332]
[1773261344870,4.8402755,87.12,87.089,10.332]
[1773261345067,14.30509057,87.124,87.089,10.332]
[1773261345270,4.8385516,87.123,87.089,10.332]
[1773261345470,4.8385516,87.122,87.089,10.332]
[1773261345666,4.8385516,87.121,87.089,10.332]
[1773261345865,4.8385516,87.12,87.089,10.332]
[1773261346067,14.30509057,87.124,87.089,10.332]
[1773261346273,4.8377583,87.123,87.089,10.332]
[1773261346472,4.8377583,87.122,87.089,10.332]
[1773261346673,4.8377583,87.121,87.09,3.90838974]
[1773261346874,4.8377583,87.12,87.09,3.90838974]
[1773261347175,14.30509057,87.124,87.09,3.90838974]
[1773261347369,4.83777455,87.123,87.09,3.90838974]
[1773261347574,4.83777455,87.122,87.09,3.90838974]